Cogmind - Beta 16 @@@ ROGUE MODE // 2025.10.28 @ 14:42:43 Player: YA-B01 Result: Destroyed by Y-54 Guardian with Gatling Laser Performance ------------- Evolutions (3) 1500 Regions Visited (12) 2400 Robots Destroyed (216) 1080 Value Destroyed (8687) 8687 Prototype IDs (11) 220 Alien Tech Used (0) 0 Bonus (4318) 4318 TOTAL SCORE: 18205 Bonus ------- High Alert Combat Kills 1044 Follower Combat Kills 974 Entered Garrisons 800 Used RIF Installer 1500 Cogmind --------- Core Integrity 0/700 Matter 267/300 Energy 278/290 System Corruption 6% Temperature Cool (54) Movement Treading (320) Ox2 Location -7/Garrison Parts ------- > --- POWER (1) -------- Reinforced Deuterium Engine > --- PROPULSION (4) --- Light Treads Improved Medium Treads Armored Huge Wheel > --- UTILITY (6) ------ Huge Storage Unit Improved Light Armor Plating Relay Coupler [Grunt] (41) Relay Coupler [Grunt] (30) Relay Coupler [Brawler] (11) > --- WEAPON (2) ------- Shock Rifle Magnetic Acceleration Cannon > --- INVENTORY (25) --- Improved Heavy Treads Improved Heavy Treads Armored Huge Wheel Armored Huge Wheel Armored Huge Wheel Advanced Heat Sink High-capacity Storage Unit Relay Coupler [NC] (39) Relay Coupler [NC] (33) Relay Coupler [NC] (23) Relay Coupler [Demolisher] (24) Relay Coupler [Hunter] (18) Relay Coupler [Hunter] (22) Relay Coupler [Hunter] (14) Relay Coupler [Behemoth] (11) Relay Coupler [Behemoth] (11) Advanced EMP Blaster Improved Grenade Launcher Improved Datajack Great Axe Peak State ------------ > --- POWER ------------ Reinforced Deuterium Engine > --- PROPULSION ------- Light Treads Improved Medium Treads Armored Huge Wheel > --- UTILITY ---------- Advanced Heat Sink Huge Storage Unit Improved Light Armor Plating Improved Light Armor Plating Relay Coupler [Grunt] Relay Coupler [Brawler] > --- WEAPON ----------- Shock Rifle Great Axe > --- INVENTORY -------- Improved Heavy Treads Improved Heavy Treads Armored Huge Wheel Armored Huge Wheel Armored Huge Wheel High-capacity Storage Unit Relay Coupler [NC] Relay Coupler [NC] Relay Coupler [NC] Relay Coupler [Grunt] Relay Coupler [Demolisher] Relay Coupler [Hunter] Relay Coupler [Hunter] Relay Coupler [Hunter] Relay Coupler [Behemoth] Relay Coupler [Behemoth] Magnetic Acceleration Cannon Advanced EMP Blaster Improved Grenade Launcher Improved Datajack [Rating: 53] Favorites ----------- Power Light Nuclear Core Engine Heavy Deuterium Engine Power Core Light Nuclear Core Propulsion Light Treads Treads Light Treads Leg Aluminum Leg Wheel Armored Wheel Flight Unit Improved VTOL Module Utility High-capacity Storage Unit Device Seismic Detector Storage High-capacity Storage Unit Processor Machine Analyzer Hackware Relay Coupler [NC] Protection Improved Light Armor Plating Weapon Heavy EM Pulse Gun Energy Gun Heavy EM Pulse Gun Energy Cannon Heavy Particle Cannon Ballistic Gun High-powered Shotgun Ballistic Cannon Magnetic Acceleration Cannon Launcher Improved Grenade Launcher Special Weapon Remote Datajack Impact Weapon Great Maul Slashing Weapon Great Axe Special Melee Weapon Improved Datajack Build | -11 -10 -10 -10 -9 -8 -8 -8 -8 -7 -7 -7 -7 ------- Run | Yrd Mat Min Exi Min Mat Gar Mat Gar Fac Gar Fac Gar Slots Evolved 6 | . . . . . 4 . . . 2 . . . Power . | . . . . . . . . . . . . . Propulsion 2 | . . . . . 2 . . . . . . . Utility 4 | . . . . . 2 . . . 2 . . . Weapon . | . . . . . . . . . . . . . Parts Attached 131 | 6 12 1 . . 33 6 6 17 12 21 7 10 Power 17 | 1 3 1 . . 4 1 . 1 1 4 . 1 Engine 10 | 1 3 . . . 1 1 . . 1 2 . 1 Core 7 | . . 1 . . 3 . . 1 . 2 . . Reactor . | . . . . . . . . . . . . . Propulsion 35 | 2 . . . . 12 2 2 5 4 4 1 3 Treads 26 | 2 . . . . 9 . 2 4 3 4 . 2 Leg 2 | . . . . . 2 . . . . . . . Wheel 6 | . . . . . . 2 . 1 1 . 1 1 Hover . | . . . . . . . . . . . . . Flight 1 | . . . . . 1 . . . . . . . Utility 45 | 1 4 . . . 7 . 2 8 4 8 6 5 Device 3 | . . . . . 1 . . . . . . 2 Storage 6 | 1 2 . . . 2 . . . . . 1 . Processor 1 | . . . . . . . . . 1 . . . Hackware 20 | . . . . . . . 1 7 2 5 4 1 Protection 15 | . 2 . . . 4 . 1 1 1 3 1 2 Artifact . | . . . . . . . . . . . . . Weapon 34 | 2 5 . . . 10 3 2 3 3 5 . 1 Energy Gun 10 | 1 4 . . . 3 . 1 . . . . 1 Energy Cannon 1 | . . . . . 1 . . . . . . . Ballistic Gun 6 | 1 1 . . . 2 1 . 1 . . . . Ballistic Cannon 8 | . . . . . . . . 1 2 5 . . Launcher 3 | . . . . . 1 1 . . 1 . . . Special Weapon 1 | . . . . . . . . 1 . . . . Impact Weapon 2 | . . . . . 1 1 . . . . . . Slashing Weapon 1 | . . . . . . . 1 . . . . . Piercing Weapon . | . . . . . . . . . . . . . Special Melee Weapon 2 | . . . . . 2 . . . . . . . Unidentified Prototypes 4 | . . . . . 3 . . . 1 . . . Corrupted Parts 1 | . . . . . . . . . . 1 . . System Corruption 1 | . . . . . . . . . . 1 . . Parts Lost 55 | . . . . . 11 2 6 10 1 13 3 9 Power 4 | . . . . . . . . 1 . 2 . 1 Propulsion 26 | . . . . . 6 1 1 7 1 5 2 3 Utility 15 | . . . . . 3 . 4 1 . 3 . 4 Weapon 10 | . . . . . 2 1 1 1 . 3 1 1 Highest Loss Streak 5 | . . . . . 3 1 1 2 1 5 2 3 To Critical Strikes . | . . . . . . . . . . . . . Average Backups 17 | 3 10 14 15 15 18 18 18 19 18 18 18 19 Power . | . . . . . . . . . . . . . Propulsion 3 | 1 4 6 6 6 5 5 4 1 1 1 1 3 Utility 5 | . 2 1 1 1 1 4 8 9 11 10 11 10 Weapon 5 | . 3 6 7 7 8 6 3 4 5 4 3 2 Tool/Special . | . . . . . . . . . . . . . Unused Backups 47 | . 7 4 . . 7 4 . 8 2 1 . 14 Power 1 | . . . . . . . . . . 1 . . Propulsion 11 | . 3 . . . 2 . . . 1 . . 5 Utility 20 | . 3 1 . . . 2 . 5 . . . 9 Weapon 13 | . 1 3 . . 5 2 . 1 1 . . . Tool/Special 2 | . . . . . . . . 2 . . . . Average Slot Usage (%) 94 | . 99 100 100 100 98 99 89 86 93 91 88 85 Engine 5 | . 14 2 . . 1 9 9 7 4 3 7 2 Core 3 | . . 11 14 14 7 . . . 2 2 . . Treads 27 | . 28 28 28 28 34 25 30 29 20 23 17 13 Wheel 3 | . . . . . . 10 4 2 8 3 5 7 Device 1 | . . . . . 2 8 6 . . . . 3 Storage 11 | . 14 14 14 14 17 9 9 9 7 7 7 7 Hackware 7 | . . . . . . . 1 12 21 19 31 18 Protection 12 | . 13 14 14 14 15 18 9 6 8 13 2 14 Energy Gun 8 | . 20 28 28 28 9 4 5 . . . . 1 Ballistic Gun 2 | . 7 . . . 1 5 3 7 . . . . Ballistic Cannon 1 | . . . . . . . . 2 5 10 3 5 Impact Weapon 1 | . . . . . 5 6 . . . . . . Slashing Weapon 2 | . . . . . . . 7 6 2 2 3 6 Peak Build Rating 53 | 6 11 14 14 14 39 37 47 48 40 47 47 53 Average Rating 29 | 5 9 13 14 14 26 36 39 37 35 39 42 46 On Entrance 25 | . 6 11 14 14 14 37 36 45 28 37 47 46 Avg Prop Armor Cover (%) 16 | . . . . . 3 13 12 21 21 18 18 11 Naked Turns . | . . . . . . . . . . . . . Heaviest Build 114 | 10 34 34 34 34 86 69 77 76 66 83 105 114 Greatest Support 98 | 40 40 40 40 40 98 98 96 96 60 93 93 50 Greatest Overweight (x) 5 | . . . . . 1 5 5 4 5 4 3 4 Average Overweight (x) . | . . . . . . 1 1 1 3 1 1 2 Largest Inventory Capacity 25 | 8 15 15 15 15 20 20 20 20 20 20 25 25 Average Capacity 18 | 7 11 15 15 15 19 20 20 20 20 20 21 25 Most Carried 25 | 6 14 15 15 15 20 20 20 20 20 20 25 25 Average Carried 17 | 3 10 14 15 15 18 19 19 19 19 19 20 22 Final Capacity 25 | 8 15 15 15 15 20 20 20 20 20 20 25 25 Final Carried 25 | 6 14 15 15 15 20 20 20 20 20 17 23 25 Class Distribution -------------------- 49% | Bothacker-Mutant 49% | Mutant Dominant Class ---------------- Mutant | -10/Materials Mutant | -10/Mines Mutant | -10/Exiles Mutant | -9/Mines Mutant | -8/Materials Bothacker-Mutant | -8/Garrison Bothacker-Mutant | -8/Materials Bothacker-Mutant | -8/Garrison Bothacker-Mutant | -7/Factory Bothacker-Mutant | -7/Garrison Bothacker-Mutant | -7/Factory Bothacker-Mutant | -7/Garrison Resources | -11 -10 -10 -10 -9 -8 -8 -8 -8 -7 -7 -7 -7 ----------- Run | Yrd Mat Min Exi Min Mat Gar Mat Gar Fac Gar Fac Gar Matter Collected 4726 | 273 184 10 . . 509 342 385 855 253 905 572 438 Remotely . | . . . . . . . . . . . . . Salvage Created 7235 | 177 755 99 . 20 2106 476 1373 947 286 269 137 590 Parts 362 | 15 62 6 . . 92 19 49 52 9 17 4 37 Haulers Intercepted 8 | . 2 . . . 5 . 1 . . . . . Recyclers Shooed 8 | . 4 1 . . 1 . 1 . . . 1 . Parts Field Recycled . | . . . . . . . . . . . . . Retrieved Matter . | . . . . . . . . . . . . . Parts Self-Destructed . | . . . . . . . . . . . . . Prevented . | . . . . . . . . . . . . . Parts Restored . | . . . . . . . . . . . . . Kills | -11 -10 -10 -10 -9 -8 -8 -8 -8 -7 -7 -7 -7 ------- Run | Yrd Mat Min Exi Min Mat Gar Mat Gar Fac Gar Fac Gar Combat Hostiles Destroyed 165 | . 17 3 . 1 47 17 19 26 4 12 6 13 Melee 43 | . . . . . 11 . 18 6 2 2 1 3 Guns 40 | . 15 1 . 1 16 4 . 3 . . . . Cannons 28 | . . . . . 2 . . 5 2 10 3 6 AOE 36 | . 2 2 . . 4 11 . 11 . . 2 4 Classes Destroyed 17 | 3 6 . . 1 3 . . 2 . 2 . . Worker 11 | 2 2 . . . 6 . 1 . . . . . Builder 4 | . 1 . . . 3 . . . . . . . Tunneler 5 | 4 . . . . . . 1 . . . . . Hauler 8 | . 2 . . . 5 . 1 . . . . . Recycler 10 | 1 2 . . . 2 . 4 . 1 . . . Operator 4 | . 1 . . . 1 . 2 . . . . . Watcher 10 | . 3 . . . 5 . 2 . . . . . Swarmer 49 | . 8 . . . 17 7 2 6 . . 2 7 Cutter 3 | . . . . . . . . . . 3 . . Grunt 70 | . 9 3 . . 22 7 13 9 1 5 1 . Brawler 3 | . . . . . 1 1 . 1 . . . . Duelist 3 | . . . . . . . . 1 . . 2 . Sentry 19 | . . . . . 6 1 3 2 2 1 . 4 Hunter 5 | . . . . . 1 1 1 2 . . . . Programmer 11 | . . . . . . . . 5 1 2 1 2 Behemoth 1 | . . . . . . . . . . 1 . . Assembled 1 | . . . . 1 . . . . . . . . Best Kill Streak 9 | 5 6 2 . 1 9 7 4 5 2 4 2 4 Combat Bots Only 7 | . 4 2 . 1 7 7 4 5 1 4 2 4 Max Kills in Single Turn 4 | 1 4 2 . 1 3 3 1 3 1 1 2 2 Gunslinging . | . . . . . . . . . . . . . Exploded 3 | . 1 2 . . 2 3 . 3 . . 2 2 Melee 1 | . . . . . 1 . 1 1 1 1 1 1 Uniques/NPCs Destroyed . | . . . . . . . . . . . . . Combat | -11 -10 -10 -10 -9 -8 -8 -8 -8 -7 -7 -7 -7 -------- Run | Yrd Mat Min Exi Min Mat Gar Mat Gar Fac Gar Fac Gar Hostile Shots Fired 1267 | . 69 2 . 12 240 69 113 164 99 186 78 235 Missed 349 | . 16 . . 6 69 21 29 29 30 44 34 71 Hits 918 | . 53 2 . 6 171 48 84 135 69 142 44 164 Melee 17 | . . . . 1 . . . 3 . 8 5 . Projectile 901 | . 53 2 . 5 171 48 84 132 69 134 39 164 AOE 1 | . . . . . . . . 1 . . . . Critical Strikes 32 | . . . . . 5 . 6 9 2 7 3 . Actively Blocked 1 | . . . . . . . . 1 . . . . Damage Taken 12727 | . 569 23 . 75 2200 691 1361 1911 606 2678 884 1729 Core 1246 | . 71 . . 10 167 63 50 177 40 256 197 215 Absorbed by Shields 45 | . . . . . . . . 28 . 17 . . Redirected to Shielding 154 | . . . . . 50 . . 20 9 75 . . Ignored by Resistances 80 | . . . . . 80 . . . . . . . Regen/Repaired (Parts) 666 | . . . . . 165 . 209 . 200 . 92 . Core Remaining (%) 61 | 100 . . . 67 . . . 16 . . . . Volleys Fired 447 | 13 76 3 . 7 69 43 4 62 32 61 48 29 Largest 2 | 2 2 2 . 2 2 2 1 2 2 2 1 2 Hottest 136 | 60 90 90 . 90 136 70 25 65 74 88 44 94 Shots Fired 730 | 23 149 6 . 14 134 65 5 99 43 104 48 40 Gun 411 | 23 149 6 . 14 120 47 5 41 . . . 6 Cannon 229 | . . . . . 12 . . 42 28 100 17 30 Launcher 38 | . . . . . 2 18 . 13 . . 1 4 Special 52 | . . . . . . . . 3 15 4 30 . Kinetic 412 | 13 67 . . . 26 44 4 83 28 100 17 30 Thermal 85 | 10 29 . . . 45 . 1 . . . . . Explosive 21 | . . . . . 2 9 . 5 . . 1 4 Electromagnetic 160 | . 53 6 . 14 61 12 . 8 . . . 6 Robot Hit Streak 38 | 9 13 1 . 3 8 36 38 9 7 12 14 9 Robot Miss Streak 8 | 1 3 3 . 3 8 6 4 4 2 4 3 2 Penetration Max 1 | . . . . . . . . 1 . . . . Secondary Targets 4 | . 1 . . . 1 2 . . . . . . Max Gunslinging Chain 1 | . 1 . . . 1 1 . . . . . . Shots Hit Robots 652 | 17 76 1 . 6 156 43 85 85 27 70 44 42 Core Hits 269 | 10 41 3 . 4 57 35 28 38 6 15 8 24 Critical Kills 3 | . . . . . 3 . . . . . . . Critical Parts Destroyed 22 | . . . . . 21 . 1 . . . . . Critical Strikes 48 | . . . . . 27 . 8 4 1 5 1 2 Burn 2 | . . . . . 2 . . . . . . . Meltdown 1 | . . . . . 1 . . . . . . . Blast 7 | . . . . . . . . . . 5 1 1 Smash 25 | . . . . . 24 . 1 . . . . . Sever 13 | . . . . . . . 7 4 1 . . 1 Melee Attacks 485 | . . . . . 106 34 110 95 16 45 32 47 Impact 151 | . . . . . 105 34 12 . . . . . Slashing 320 | . . . . . . . 97 92 14 45 25 47 Piercing . | . . . . . . . . . . . . . Sneak Attacks 30 | . . . . . 11 1 9 2 5 . 2 . Combat Hostiles 6 | . . . . . 4 1 . 1 . . . . Follow-up Attacks . | . . . . . . . . . . . . . Damage Inflicted 21524 | 146 1423 235 . 79 5844 1694 3587 3080 534 2225 590 2087 Guns 3426 | 146 795 16 . 79 1206 526 56 574 . . . 28 Cannons 3658 | . . . . . 200 . . 546 174 1639 372 727 Explosions 3620 | . 536 167 . . 542 1089 . 859 . . 66 361 Melee 10513 | . . . . . 3811 79 3476 1088 360 581 147 971 Ramming 307 | . 92 52 . . 85 . 55 13 . 5 5 . Kinetic 5260 | 57 269 . . . 354 511 37 1120 174 1639 372 727 Thermal 1510 | 89 396 167 . . 839 . 19 . . . . . Explosive 2401 | . 373 . . . 363 808 . 430 . . 66 361 Electromagnetic 1533 | . 293 16 . 79 392 296 . 429 . . . 28 Impact 4263 | . . . . . 3811 79 373 . . . . . Slashing 6250 | . . . . . . . 3103 1088 360 581 147 971 Piercing . | . . . . . . . . . . . . . Highest Corruption 6 | . . . . . . 1 1 6 . 2 2 6 Average Corruption 2 | . . . . . . 1 1 3 . 1 2 4 Corruption Purged . | . . . . . . . . . . . . . Corruption Blocked . | . . . . . . . . . . . . . Effects 98 | . . . . . . 5 14 30 . 11 16 22 Message Errors 26 | . . . . . . 2 3 7 . 4 5 5 Matter Fused 26 | . . . . . . 2 5 8 . 2 4 5 Heat Flow Errors 8 | . . . . . . . . 3 . 1 3 1 Energy Discharges 16 | . . . . . . 1 1 6 . 2 1 5 Parts Rejected 1 | . . . . . . . 1 . . . . . Parts Fused 1 | . . . . . . . . . . . 1 . Data Loss (minor) 10 | . . . . . . . 1 3 . 1 1 4 Data Loss (major) 4 | . . . . . . . 2 1 . 1 . . Misfires 2 | . . . . . . . 1 . . . . 1 Alerts 2 | . . . . . . . . . . . 1 1 Weapon Failures 2 | . . . . . . . . 2 . . . . Overload Shots . | . . . . . . . . . . . . . Overflow Damage 2159 | . 154 2 . . 1411 32 355 60 42 52 28 23 Projectiles 102 | . . . . . 5 . . 7 . 39 28 23 Explosions 225 | . 154 2 . . 15 23 . 31 . . . . Melee 1832 | . . . . . 1391 9 355 22 42 13 . . Knockbacks 46 | . . . . . 23 . . 10 3 6 1 3 Impact 19 | . . . . . 19 . . . . . . . Kinetic 21 | . . . . . . . . 9 2 6 1 3 Secondary 6 | . . . . . 4 . . 1 1 . . . Self-Inflicted Damage 406 | . 40 . . . 64 100 . 115 . . . 87 Shots 12 | . 1 . . . 2 3 . 3 . . . 3 Rammed 38 | . 14 7 . . 10 . 3 3 . . 1 . Targets Rammed 44 | . 15 7 . . 12 . 5 3 . 1 1 . Kicked . | . . . . . . . . . . . . . Crushed 6 | . 1 . . . 2 . 2 . . 1 . . Highest Temperature 389 | 40 169 102 . 270 234 79 32 160 18 389 201 181 Average Temperature 62 | 16 59 43 . 131 74 23 14 29 10 94 63 63 Received Heat Transfer 4070 | . 129 12 . . 900 180 702 421 168 1048 252 258 Effects 1 | . . . . . . . . . . 1 . . Shutdowns 1 | . . . . . . . . . . 1 . . Siege Activations . | . . . . . . . . . . . . . Martial Activations . | . . . . . . . . . . . . . Shielding Activations . | . . . . . . . . . . . . . Robots Disrupted . | . . . . . . . . . . . . . Combat Hostiles . | . . . . . . . . . . . . . Robots Corrupted 21 | . . . . . 17 2 1 1 . . . . Combat Hostiles 17 | . . . . . 13 2 1 1 . . . . Parts Fried 23 | . . . . . 14 4 1 4 . . . . Impact Corruptions 41 | . . . . . 38 1 2 . . . . . Robots Melted 1 | . . . . . 1 . . . . . . . Combat Hostiles 1 | . . . . . 1 . . . . . . . Parts Melted 5 | . 1 . . . 4 . . . . . . . Heat Transferred 2657 | 200 725 200 . . 1495 . 37 . . . . . Parts Sabotaged . | . . . . . . . . . . . . . Parts Stolen . | . . . . . . . . . . . . . Parts Stripped . | . . . . . . . . . . . . . Power Chain Reactions 9 | . 3 . . . 4 1 . 1 . . . . Alert | -11 -10 -10 -10 -9 -8 -8 -8 -8 -7 -7 -7 -7 ------- Run | Yrd Mat Min Exi Min Mat Gar Mat Gar Fac Gar Fac Gar Maximum Alert Level 4 | . 1 . . . 2 3 2 4 2 2 3 2 Low Security (%) 28 | 100 62 100 . 100 45 14 . . . . . . Level 1 27 | . 37 . . . 32 31 71 10 34 15 2 8 Level 2 36 | . . . . . 22 28 28 28 65 84 96 91 Level 3 5 | . . . . . . 25 . 34 . . 1 . Level 4 2 | . . . . . . . . 26 . . . . Level 5 . | . . . . . . . . . . . . . High Security . | . . . . . . . . . . . . . Max Security . | . . . . . . . . . . . . . Peak Influence 1176 | 15 285 127 . . 616 925 495 1176 617 656 702 690 Initial 617 | . . 48 . . . 187 450 313 617 215 344 389 Average 372 | 2 154 28 . . 245 495 336 780 443 482 578 551 Influence Increases 7403 | 35 632 157 . . 1756 758 907 1023 147 651 946 391 Destroy 0b10 Robot/C 3525 | . 340 60 . . 940 340 380 535 75 315 345 195 Destroy 0b10 Robot/NC 292 | 35 55 . . . 110 5 55 . 4 . 20 8 Destroy Leader 572 | . 80 20 . . 220 30 96 20 24 . 66 16 Allied During Kill 186 | . . . . . . . . 5 5 50 126 . Trap Triggered on 0b10 60 | . . . . . 40 . 20 . . . . . Successful Hack 160 | . 55 . . . 17 14 3 25 9 11 3 23 Disable Machine 243 | . 45 60 . . 30 . . . 24 . 72 12 Anti-Garrison Action 953 | . . . . . . 250 . 288 . 151 226 38 Destroy Structure 509 | . 27 17 . . 54 89 8 105 6 64 76 63 Partial Spotted 42 | . . . . . 15 . 15 . . . 12 . Lose Combat Pursuer 861 | . 30 . . . 330 30 330 45 . 60 . 36 Influence Decreases 6713 | 35 508 281 . . 1467 122 1349 330 1015 303 1046 257 Entered New Map 1954 | . . 76 . . . 102 475 170 559 93 312 167 Time Decay 2809 | 35 508 205 . . 667 . 514 . 416 . 464 . Search Patrol Dispatched 100 | . . . . . 100 . . . . . . . Lost Part 540 | . . . . . 100 20 60 100 10 130 30 90 Lost Ally 260 | . . . . . . . . 60 30 80 90 . Purge Threat 1050 | . . . . . 600 . 300 . . . 150 . Squads Dispatched 32 | . 3 1 . . 7 . 5 . 4 . 12 . Investigation 11 | . 3 1 . . 3 . 1 . 1 . 2 . Extermination 3 | . . . . . . . . . 2 . 1 . Reinforcement 8 | . . . . . 3 . 3 . . . 2 . Assault 6 | . . . . . 1 . . . 1 . 4 . Garrison 4 | . . . . . . . 1 . . . 3 . Intercept . | . . . . . . . . . . . . . Searches Triggered 1 | . . . . . 1 . . . . . . . Construction Impeded 3 | . . . . . 2 . . . . . 1 . Haulers Reinforced . | . . . . . . . . . . . . . Active Scanning Responses . | . . . . . . . . . . . . . Cargo Convoy Interrupts . | . . . . . . . . . . . . . Stealth | -11 -10 -10 -10 -9 -8 -8 -8 -8 -7 -7 -7 -7 --------- Run | Yrd Mat Min Exi Min Mat Gar Mat Gar Fac Gar Fac Gar Distress Signals 14 | . 2 . . . 3 . 5 . 4 . . . Communications Jammed . | . . . . . . . . . . . . . Distress Signals . | . . . . . . . . . . . . . Times Spotted 307 | . 26 3 . 7 73 21 57 33 13 24 36 14 Peak Tracking Total 7 | . 4 2 . 5 5 5 7 6 5 5 5 5 Tactical Retreats 41 | . 1 . . . 14 1 16 3 . 5 . 1 Traps | -11 -10 -10 -10 -9 -8 -8 -8 -8 -7 -7 -7 -7 ------- Run | Yrd Mat Min Exi Min Mat Gar Mat Gar Fac Gar Fac Gar Traps Triggered 28 | . 2 . . . 1 1 6 10 . 2 . 6 Indirectly 5 | . . . . . . . . 5 . . . . Trap Hack Attempts 132 | . . . . . 89 . 15 . 28 . . . Triggered 1 | . . . . . 1 . . . . . . . Disarmed . | . . . . . . . . . . . . . Reprogrammed 17 | . . . . . 9 . 3 . 5 . . . Reused 6 | . . . . . 4 . 2 . . . . . Traps Extracted . | . . . . . . . . . . . . . Installed . | . . . . . . . . . . . . . Triggered 6 | . . . . . 4 . 2 . . . . . Machines | -11 -10 -10 -10 -9 -8 -8 -8 -8 -7 -7 -7 -7 ---------- Run | Yrd Mat Min Exi Min Mat Gar Mat Gar Fac Gar Fac Gar Machines Disabled 29 | . 3 4 . . 2 3 . 3 2 2 8 2 Max in Single Turn 4 | . 1 4 . . 1 1 . 1 2 1 . 1 Garrison Access 2 | . . . . . . . . . . . 2 . Garrison Relay 9 | . . . . . . 3 . 3 . 2 . 1 Machines Repaired . | . . . . . . . . . . . . . Machines Dismantled . | . . . . . . . . . . . . . Machines Sabotaged . | . . . . . . . . . . . . . Overloaded Fab Kills . | . . . . . . . . . . . . . Hacking | -11 -10 -10 -10 -9 -8 -8 -8 -8 -7 -7 -7 -7 --------- Run | Yrd Mat Min Exi Min Mat Gar Mat Gar Fac Gar Fac Gar Machines Accessed 59 | . 9 1 1 . 15 3 8 3 4 2 10 3 Terminals 39 | . 8 . . . 10 3 5 3 1 2 4 3 Fabricators 1 | . . . . . . . . . . . 1 . Repair Stations 3 | . . . . . 1 . 1 . 1 . . . Recycling Units 5 | . 1 . . . 1 . . . . . 3 . Scanalyzers 4 | . . . . . 2 . 1 . 1 . . . Garrison Access 5 | . . . . . 1 . 1 . 1 . 2 . Total Hacks 157 | . 27 1 2 . 54 4 17 5 12 5 26 4 Successful 80 | . 9 1 2 . 36 2 8 2 3 2 13 2 Failed 77 | . 18 . . . 18 2 9 3 9 3 13 2 Catastrophic 18 | . 2 . . . 3 1 2 2 2 1 4 1 Database Lockouts . | . . . . . . . . . . . . . Manual 66 | . 23 . . . 22 . 6 . 2 2 11 . Terminals 108 | . 25 . . . 37 4 11 5 3 5 14 4 Fabricators 2 | . . . . . . . . . . . 2 . Repair Stations 11 | . . . . . 3 . 2 . 6 . . . Recycling Units 11 | . 2 . . . 2 . . . . . 7 . Scanalyzers 15 | . . . . . 11 . 2 . 2 . . . Garrison Access 7 | . . . . . 1 . 2 . 1 . 3 . Terminal Hacks 33 | . 2 1 2 . 12 2 4 2 1 2 3 2 Record 2 | . . . 2 . . . . . . . . . Part Schematic 1 | . 1 . . . . . . . . . . . Prototype ID Bank 3 | . . . . . 2 . 1 . . . . . Open Door 1 | . . 1 . . . . . . . . . . Emergency Access Points 3 | . . . . . . 1 . 1 . . . 1 Alert Level 4 | . . . . . 2 . 1 . 1 . . . Unreport Threat 7 | . . . . . 4 . 2 . . . 1 . Locate Traps 4 | . . . . . 3 . . . . . 1 . Registered Components 1 | . . . . . . . . . . . 1 . Zone Layout 2 | . 1 . . . 1 . . . . . . . Garrison Registry 2 | . . . . . . 1 . . . 1 . . Patrol Navigation 2 | . . . . . . . . 1 . 1 . . Security Stations 1 | . . . . . . . . . . . . 1 Fabricator Hacks . | . . . . . . . . . . . . . Repair Station Hacks 5 | . . . . . 2 . 2 . 1 . . . Scan Component 3 | . . . . . 1 . 1 . 1 . . . Repair 2 | . . . . . 1 . 1 . . . . . Recycling Unit Hacks 3 | . . . . . . . . . . . 3 . Retrieve Matter 1 | . . . . . . . . . . . 1 . Retrieve Components 2 | . . . . . . . . . . . 2 . Scanalyzer 11 | . . . . . 11 . . . . . . . Retrieve Study 11 | . . . . . 11 . . . . . . . Garrison Access Hacks 7 | . . . . . 1 . 2 . 1 . 3 . Unlock Access 5 | . . . . . 1 . 1 . 1 . 2 . Coupler Status 2 | . . . . . . . 1 . . . 1 . Unauthorized Hacks 21 | . 7 . . . 10 . . . . . 4 . Terminals 21 | . 7 . . . 10 . . . . . 4 . Track 1 | . . . . . 1 . . . . . . . Botnet 5 | . 1 . . . 3 . . . . . 1 . Operators 1 | . 1 . . . . . . . . . . . Skim 14 | . 5 . . . 6 . . . . . 3 . Fabricators . | . . . . . . . . . . . . . Repair Stations . | . . . . . . . . . . . . . Recycling Units . | . . . . . . . . . . . . . Scanalyzers . | . . . . . . . . . . . . . Garrison Access . | . . . . . . . . . . . . . Data Cores Recovered . | . . . . . . . . . . . . . Used . | . . . . . . . . . . . . . Hacking Detections 51 | . 9 . . . 14 2 7 2 3 2 9 3 Full Trace Events 7 | . 1 . . . 2 . . 1 1 . 2 . Feedback Events . | . . . . . . . . . . . . . Feedback Blocked . | . . . . . . . . . . . . . Robot Schematics Acquired . | . . . . . . . . . . . . . Robots Built . | . . . . . . . . . . . . . Authchips . | . . . . . . . . . . . . . Time . | . . . . . . . . . . . . . Total Robot Build Rating . | . . . . . . . . . . . . . Part Schematics Acquired 1 | . 1 . . . . . . . . . . . Parts Built . | . . . . . . . . . . . . . Authchips . | . . . . . . . . . . . . . Time . | . . . . . . . . . . . . . Total Part Build Rating . | . . . . . . . . . . . . . Part Studies Acquired 9 | . . . . . 9 . . . . . . . Parts Repaired 2 | . . . . . 1 . 1 . . . . . Time 76 | . . . . . 38 . 38 . . . . . Parts Recycled . | . . . . . . . . . . . . . Recycled Matter . | . . . . . . . . . . . . . Retrieved Matter 105 | . . . . . . . . . . . 105 . Retrieved Components 10 | . . . . . . . . . . . 10 . Parts Scanalyzed . | . . . . . . . . . . . . . Part Schematics Acquired . | . . . . . . . . . . . . . Parts Damaged . | . . . . . . . . . . . . . Bothacking | -11 -10 -10 -10 -9 -8 -8 -8 -8 -7 -7 -7 -7 ------------ Run | Yrd Mat Min Exi Min Mat Gar Mat Gar Fac Gar Fac Gar Used RIF Installer 3 | . . . . . . 1 . 1 . 1 . . Threat Obfuscator 1 | . . . . . . . . 1 . . . . Watcher Feeds 1 | . . . . . . . . . . 1 . . Robots Hacked 43 | . . . . . 1 . 1 5 11 3 22 . Non-combat 18 | . . . . . 1 . 1 . 7 . 9 . Combat 25 | . . . . . . . . 5 4 3 13 . Robot Hacks Applied 48 | . . . . . 1 . 1 5 13 3 25 . parse_system 5 | . . . . . 1 . 1 . . . 3 . generate_echo 3 | . . . . . . . . . 2 . 1 . hold_bot 1 | . . . . . . . . . 1 . . . map_walls 7 | . . . . . . . . . 2 . 5 . map_earth 1 | . . . . . . . . . 1 . . . drop_inventory 1 | . . . . . . . . . 1 . . . map_route 2 | . . . . . . . . . . . 2 . mark_security 2 | . . . . . . . . . . . 2 . link_fov 1 | . . . . . . . . . 1 . . . scatter_targeting 1 | . . . . . . . . . . . 1 . disrupt_area 1 | . . . . . . . . . . . 1 . wipe_record 2 | . . . . . . . . 1 . . 1 . disable_weapons 1 | . . . . . . . . . . 1 . . reboot_system 1 | . . . . . . . . . . . 1 . overwrite_iff 7 | . . . . . . . . 1 1 . 5 . formatsys_low 2 | . . . . . . . . . 1 . 1 . formatsys_high 9 | . . . . . . . . 3 2 2 2 . formatsys_deep 1 | . . . . . . . . . 1 . . . Relay Couplers Released 39 | . . . . . . 12 . 13 . 10 1 3 Machine Destruction 35 | . . . . . . 12 . 13 . 6 1 3 Programmers 4 | . . . . . . . . . . 4 . . Attached 19 | . . . . . . . . 7 2 5 4 1 Fabnet Peak Effective % . | . . . . . . . . . . . . . Robots Rewired 1 | . . . . . . . . . . . 1 . Allies Hacked 4 | . . . . . . . . 1 1 1 1 . Hacks Repelled . | . . . . . . . . . . . . . Allies | -11 -10 -10 -10 -9 -8 -8 -8 -8 -7 -7 -7 -7 -------- Run | Yrd Mat Min Exi Min Mat Gar Mat Gar Fac Gar Fac Gar Total Allies 25 | . . . . . . . . 4 8 4 9 . Largest Group 5 | . . . . . . . . 1 4 3 5 . Highest-Rated Group 265 | . . . . . . . . 29 77 190 265 . Highest-Rated Ally 95 | . . . . . . . . 29 40 95 95 . Total Orders 19 | . . . . . . . . . 7 5 7 . STAY 5 | . . . . . . . . . 3 2 . . FOLLOW 4 | . . . . . . . . . 2 2 . . AID 10 | . . . . . . . . . 2 1 7 . Ally Attacks 185 | . . . . . . . . 16 21 56 92 . Total Damage 5466 | . . . . . . . . 318 196 1133 3819 . Kills 37 | . . . . . . . . 2 1 9 25 . Allies Corrupted 1 | . . . . . . . . . . . 1 . Allies Melted . | . . . . . . . . . . . . . Intel | -11 -10 -10 -10 -9 -8 -8 -8 -8 -7 -7 -7 -7 ------- Run | Yrd Mat Min Exi Min Mat Gar Mat Gar Fac Gar Fac Gar Active Infowar (turns) 3670 | . . . . . 1035 1219 950 . 466 . . . Seismic 3204 | . . . . . 1035 1219 950 . . . . . Machine Analysis 466 | . . . . . . . . . 466 . . . Robot Analysis Total . | . . . . . . . . . . . . . Derelict Logs Recovered 2 | . . 2 . . . . . . . . . . Drone Launches . | . . . . . . . . . . . . . Drone Recoveries . | . . . . . . . . . . . . . Exploration | -11 -10 -10 -10 -9 -8 -8 -8 -8 -7 -7 -7 -7 ------------- Run | Yrd Mat Min Exi Min Mat Gar Mat Gar Fac Gar Fac Gar Turns Passed 16401 | 167 2238 804 456 90 4053 1220 1408 1667 1019 1359 1176 744 Spaces Moved 7457 | 70 1154 485 286 40 1430 704 552 685 561 560 625 305 Core 2 | 2 . . . . . . . . . . . . Treads 5186 | 68 1154 485 286 40 1430 280 416 460 57 373 118 19 Legs . | . . . . . . . . . . . . . Wheels 2269 | . . . . . . 424 136 225 504 187 507 286 Hover . | . . . . . . . . . . . . . Flight . | . . . . . . . . . . . . . Fastest Speed 50 | 50 160 160 160 160 156 110 110 140 120 120 130 145 Average Speed 157 | 156 160 160 160 160 165 134 161 164 144 174 139 152 Slowest Speed 480 | 160 160 160 160 160 240 245 245 246 245 243 160 480 Overloaded Moves . | . . . . . . . . . . . . . Propulsion Burnouts . | . . . . . . . . . . . . . Robots Hopped . | . . . . . . . . . . . . . Potential Cave-ins . | . . . . . . . . . . . . . Cave-ins Triggered . | . . . . . . . . . . . . . Exploration Rate (%) 52 | 6 98 98 69 9 85 80 41 73 18 42 28 38 Regions Visited 12 Branch Regions 3 Pre-discovered Areas 5 | . 1 2 1 . 1 . . . . . . . Known Exits Taken 6 | . 1 1 . . 1 . 1 . 1 . 1 . Unknown Exits Taken 3 | 1 . . 1 1 . . . . . . . . Scrap Searched 2 | . . 1 . 1 . . . . . . . . Spaces Dug 145 | . . . . . 27 24 8 33 5 16 17 15 Terrain Destroyed 293 | . 25 17 . . 57 46 8 45 6 16 25 48 Melee 122 | . . . . . 15 18 8 33 3 13 17 15 Projectile 12 | . . . . . 1 . . 1 3 3 3 1 AOE 159 | . 25 17 . . 41 28 . 11 . . 5 32 Terrain Rammed . | . . . . . . . . . . . . . Walls Destroyed . | . . . . . . . . . . . . . Machines Disabled . | . . . . . . . . . . . . . Actions | -11 -10 -10 -10 -9 -8 -8 -8 -8 -7 -7 -7 -7 --------- Run | Yrd Mat Min Exi Min Mat Gar Mat Gar Fac Gar Fac Gar Total 10565 | 104 1407 507 285 52 2761 851 867 961 708 755 848 459 Wait 1517 | 10 113 2 . 6 960 32 152 39 27 32 107 37 Move 7449 | 69 1153 484 285 39 1430 703 552 684 561 559 625 305 Hop . | . . . . . . . . . . . . . Pick Up 130 | 6 18 5 . . 27 12 4 21 9 12 9 7 Fast Attach 59 | 6 3 . . . 10 . 13 6 6 10 3 2 Attach 53 | . . . . . 11 3 3 9 2 12 7 6 Detach 17 | . 2 . . . 2 . 1 3 3 3 3 . Swap 118 | . 9 1 . . 24 13 3 20 15 14 10 9 Drop 93 | . 18 5 . . 21 11 5 14 9 6 3 1 Fire 447 | 13 76 3 . 7 69 43 4 62 32 61 48 29 Melee 485 | . . . . . 106 34 110 95 16 45 32 47 Ram . | . . . . . . . . . . . . . Kick . | . . . . . . . . . . . . . Crush 44 | . 15 7 . . 12 . 5 3 . 1 1 . Escape Stasis 21 | . . . . . . . . 5 . . . 16 Rewire . | . . . . . . . . . . . . . Trap 132 | . . . . . 89 . 15 . 28 . . . Miscellaneous . | . . . . . . . . . . . . . Route ------- -11/Scrapyard -10/Materials (discovered 6 exits: *Mat x3 / *Min x2 / Sub) -10/Mines (discovered 3 exits: *Mat x2 / *Exi) -10/Exiles -9/Mines -8/Materials (discovered 4 exits: *Fac x3 / Gar) -8/Garrison (discovered 3 exits: *Mat x3) -8/Materials (discovered 2 exits: *Fac / Gar) -8/Garrison (discovered 2 exits: *Fac x2) -7/Factory (discovered 2 exits: [*Low] / Gar) -7/Garrison (discovered 3 exits: *Fac x3) -7/Factory (discovered 3 exits: [*Sto] / [*Low] / Gar) -7/Garrison History --------- Turn | Location | Event 23 | -11/Scrapyard | Discovered new exit (range 16) 168 | -11/Scrapyard | Entered Materials 324 | -10/Materials | Build established: Mutant 573 | -10/Materials | Discovered new exit (range 7) 891 | -10/Materials | Discovered new exit (range 16) 1011 | -10/Materials | Identified exit to Materials 1011 | -10/Materials | Identified exit to Mines 1048 | -10/Materials | Identified exit to Subcaves 1048 | -10/Materials | Learned location of 1 exit from Materials 1077 | -10/Materials | Learned Storage stockpile data 1094 | -10/Materials | Learned Storage emergency access door positions 1103 | -10/Materials | Learned 4 Recycling zone layouts 1150 | -10/Materials | Learned 2 Mines zone layouts 2406 | -10/Materials | Entered Mines 2408 | -10/Mines | Identified exit to Exiles 2444 | -10/Mines | Learned location of Storage (-7) 2486 | -10/Mines | Learned 2 Materials zone layouts 2532 | -10/Mines | Met a Derelict shopkeep closing up shop 2851 | -10/Mines | Learned location of Zion (-6) 2957 | -10/Mines | Deemed a non-threat by the Exiles lab entrance 3210 | -10/Mines | Entered Exiles 3247 | -10/Exiles | Met 8R-AWN 3276 | -10/Exiles | Met EX-HEX 3326 | -10/Exiles | Met EX-BIN 3356 | -10/Exiles | Met EX-DEC 3514 | -10/Exiles | Visited The Gauntlet 3647 | -10/Exiles | Discovered new exit (range 14) 3666 | -10/Exiles | Entered Mines 3688 | -9/Mines | Assembled infested the area 3693 | -9/Mines | Assisted by a Guerilla fighting off Assembled 3719 | -9/Mines | Discovered new exit (range 7) 3756 | -9/Mines | Entered Materials 3756 | -8/Materials | Evolved 4 slots: Propulsion x2, Utility x2 3757 | -8/Materials | Identified exit to Factory 5630 | -8/Materials | Lost 3 parts (2n1u) 5756 | -8/Materials | Search patrols dispatched 5892 | -8/Materials | Destroyed 7 combat bots 7356 | -8/Materials | First assault squad dispatched 7382 | -8/Materials | Learned Factory security intel 7424 | -8/Materials | Learned Factory trap positions 7457 | -8/Materials | Learned Factory recycling unit intel 7482 | -8/Materials | Learned location of 1 exit from Storage 7499 | -8/Materials | Learned Storage security intel 7527 | -8/Materials | Learned location of Lower Caves (-7) 7563 | -8/Materials | Learned 4 Lower Caves zone layouts 7738 | -8/Materials | Repaired Imp. Light Armor Plating? 7809 | -8/Materials | Identified exit to Garrison 7809 | -8/Materials | Entered Garrison 7969 | -8/Garrison | Triggered checkpoint 8119 | -8/Garrison | Discovered new exit (range 10) 8173 | -8/Garrison | Installed Relay Interface Framework 8280 | -8/Garrison | Garrison Relay disabled 8387 | -8/Garrison | Triggered checkpoint 8401 | -8/Garrison | Triggered checkpoint 8402 | -8/Garrison | Triggered checkpoint 8427 | -8/Garrison | Destroyed 7 combat bots 8588 | -8/Garrison | Build established: Bothacker-Mutant 8657 | -8/Garrison | Discovered new exit (range 10) 8719 | -8/Garrison | Triggered checkpoint 8736 | -8/Garrison | Garrison Relay disabled 8919 | -8/Garrison | Discovered new exit (range 63) 8919 | -8/Garrison | Discovered new exit (range 14) 8919 | -8/Garrison | Discovered new exit (range 66) 8985 | -8/Garrison | Garrison Relay disabled 9029 | -8/Garrison | Entered Materials 9252 | -8/Materials | Repaired Arm. Treads 9477 | -8/Materials | Garrison activated, responded to threat 9970 | -8/Materials | Core integrity fell below 50% 10192 | -8/Materials | Discovered exit to Factory (range 6) 10437 | -8/Materials | Identified exit to Garrison 10437 | -8/Materials | Entered Garrison 10643 | -8/Garrison | Triggered checkpoint 10644 | -8/Garrison | Garrison Relay disabled 10755 | -8/Garrison | Triggered checkpoint 10917 | -8/Garrison | Triggered checkpoint 11071 | -8/Garrison | Triggered checkpoint 11215 | -8/Garrison | Triggered checkpoint 11238 | -8/Garrison | Discovered exit to Factory (range 14) 11349 | -8/Garrison | Triggered checkpoint 11431 | -8/Garrison | Garrison Relay disabled 11627 | -8/Garrison | Triggered checkpoint 11657 | -8/Garrison | Discovered exit to Factory (range 10) 11673 | -8/Garrison | Expanded RIF knowledge: Threat Obfuscation 11881 | -8/Garrison | Garrison Relay disabled 11915 | -8/Garrison | Core integrity fell below 20% 12104 | -8/Garrison | Entered Factory 12104 | -7/Factory | Evolved 2 slots: Utility x2 12105 | -7/Factory | Loaded intel: 124 trap records 12107 | -7/Factory | Loaded intel: 6 recycling unit locations 12235 | -7/Factory | Discovered new exit (range 4) 12504 | -7/Factory | First assault squad dispatched 12764 | -7/Factory | Assimilated Heavy ARC 4a with formatsys_deep 13121 | -7/Factory | Identified exit to Garrison 13123 | -7/Factory | Entered Garrison 13123 | -7/Garrison | Accompanied by 3 allies 13245 | -7/Garrison | Triggered checkpoint 13284 | -7/Garrison | Garrison Relay disabled 13312 | -7/Garrison | P-60 Hacker assimilated allied Trooper 4b 13613 | -7/Garrison | Lost 5 parts (1n3u1w) 13889 | -7/Garrison | Triggered checkpoint 13893 | -7/Garrison | Triggered checkpoint 13941 | -7/Garrison | Expanded RIF knowledge: Watcher Feeds 14055 | -7/Garrison | Triggered checkpoint 14074 | -7/Garrison | Discovered new exit (range 66) 14074 | -7/Garrison | Discovered new exit (range 73) 14074 | -7/Garrison | Discovered new exit (range 21) 14095 | -7/Garrison | Garrison Relay disabled 14180 | -7/Garrison | Spotted B-75 Beast 14265 | -7/Garrison | Destroyed B-75 Beast 14281 | -7/Garrison | Lost 3 parts (1p2w) 14360 | -7/Garrison | Found embedded Infiltrators 14482 | -7/Garrison | Entered Factory 14482 | -7/Factory | Accompanied by 2 allies 14654 | -7/Factory | Discovered new exit (range 19) 15009 | -7/Factory | Discovered new exit (range 13) 15077 | -7/Factory | Garrison activated, responded to threat 15140 | -7/Factory | Identified exit to Garrison 15212 | -7/Factory | Lost 3 allies 15356 | -7/Factory | Core integrity fell below 50% 15658 | -7/Factory | Identified exit to Garrison 15658 | -7/Factory | Entered Garrison 15704 | -7/Garrison | Triggered checkpoint 15781 | -7/Garrison | Garrison Relay disabled 15799 | -7/Garrison | Core integrity fell below 20% 15850 | -7/Garrison | Lost 3 parts (1p1u1w) 15890 | -7/Garrison | Learned Factory security intel 16017 | -7/Garrison | Lost 3 parts (1n2u) 16159 | -7/Garrison | Triggered checkpoint 16368 | -7/Garrison | Triggered checkpoint 16402 | -7/Garrison | Destroyed by Y-54 Guardian with Gatling Laser Last Messages --------------- 16265_ Sneak attack on A-27 Freighter. 16266_ OIOS1XD&5WI,A:1EA> 16267_ Sneak attack on A-27 Freighter. 16270_ A-27 Freighter destroyed. 16274_ Acquired Imp. Heavy Treads. 16275_ Acquired 125 matter. 16281_ Sneak attack on A-27 Freighter. 16292_ A-27 Freighter destroyed. 16294_ Acquired 29 matter. 16299_ Acquired Imp. Heavy Treads. 16301_ Dropped Imp. Heat Sink. 16303_ Acquired 10 matter. 16317_ System corrupted: FCS attempts to trigger Shock Rifle. 16317_ System corrupted: Shock Rifle misfires. 16338_ Connecting with Garrison Terminal... 16343_ System corrupted: Energy discharge (-98). 16382_ System corrupted: Component data lost. 16391_ Imp. Light Armor Plating destroyed. 16401_ Y-54 Guardian destroyed. Map ----- +----------------------------------------------------+ | | | | | ?????????????????????????????????????????????? | | ?????????????????????????????????????????????? | | ?????????????????????????????????????????????? | | ?????????????????????????????????????????????? | | ?????????????????????????????????????????????? | | ?????????????????????????????????????????????? | | ?????????????????????????????????????????????? | | ???????????????+?????????????????????????????? | | ?????????????????????????????????????????????? | | ??????????????????????????????????????+??????? | | ?????????????????????????????????????????????? | | ????????????????????????????????+????????????? | | ???????????????????##????????????????????????? | | ???????????????????? ???????????????????????? | | ?????????????++?????? ###+####+??????????????? | | ?????????????????????? ??????+?????????? | | ??????????????????????? ?????????????????? | | ???????????????????????# #???+??????????????? | | ???????????????????????; #### ##????????????? | | ???????????????????????+ %+ #????????????? | | ???????????????????????#[Y!######????????????? | | ???????????????????????#=%##?????????????????? | | ???????????????????????#!*#??????????????????? | | ??????##############+### @#??????????????????? | | ??????#" #??????????????????? | | ??????#"T"##### #??????????????????? | | ??????#####???# ###+######??????????????????? | | ??????????????# ### #???????????????????????? | | ??????????????+ " #???????????????????????? | | ??????????????# #####???????????????????????? | | ??????????????# #???????????????????????????? | | ??????????????# #???????????????????????????? | | ############+## #???????????????????????????? | | ! #???????????????????????????? | | [[* #???????????????????????????? | | ########## #####???????????????????????????? | | #????????# ###?????????????????????????????? | | #???????##!!!##????????????????????????????? | | #???????# !!*%#????????????????????????????? | | #???????# *![!#????????????????????????????? | | +???????#= !#????????????????????????????? | | #???????# #????????????????????????????? | | ##??????## ##????????????????????????????? | | #???????#####?????????????????????????????? | | #?????????????????????????????????????????? | | #?????????????????????????????????????????? | | #?????????????????????????????????????????? | | #+????????????????????????????????????????? | +----------------------------------------------------+ Best States ------------- Heat Dissipation 53 Energy Generation 18 Energy Capacity 310 Matter Stores 300 Matter Capacity 300 Sight Range 16 Terrain Scan Density 10 Armor Coverage 750 Resistance: TH 10 Core Shielding 30 Propulsion Shielding 33 Evasion (%) 40 Recoil Reduction 4 Offensive Hacking 10 Relay Coupler Types 4 Relay Coupler Value 113 Item Schematics ----------------- Hcp. Storage Unit | -10/Materials | Hacked Robot Schematics ------------------ None Fabricated ------------ Nothing Repaired ---------- Imp. Light Armor Plating | 8% | -8/Materials Arm. Treads | 30% | -8/Materials Studied --------- Arm. Wheel | -8/Materials | Hacked Hpw. Shotgun | -8/Materials | Hacked Great Maul | -8/Materials | Hacked Hvy. Flail | -8/Materials | Hacked Imp. Datajack | -8/Materials | Hacked Shock Bomb Launcher | -8/Materials | Hacked Imp. Grenade Launcher | -8/Materials | Hacked Adv. Treads | -8/Materials | Hacked Hvy. Particle Cannon | -8/Materials | Hacked Alien Tech Used ----------------- None Achievements -------------- A Problem For Future Me Bumper Bots Construction Begets Destruction DATA ERROR: Steam Global Achievement% Deep Understanding For Emergencies Only Hack The Planet Hammer Time I Have A Map? Item+ Join The Dark Side Let Me Out Of Here Mindtrick Organ Harvest Overwhelming Suspicious That Tickles There's More Where That Came From Versatile You Will Be Upgraded Challenges ------------ None Game ------ Seed BladeGravityCyclogen Manual? 0 Play Time 02:27:33 Cumulative 292.9 hours Start 2025.10.24 @ 12:51:15 End 2025.10.28 @ 14:42:43 Sessions 9 Manual Loads 0 Difficulty Rogue Special Mode None Game No. 151 Rogue 148 Adventurer 3 Explorer 0 Win Type - Total 8 Types 7/0/1/0/0/0/0/0/0/0 Lore% 76 Gallery% 72 Achievement% 38 Wizard Run 0 Options --------- Layout 1 ASCII 0 Keyboard 1 Movement Vi Keybinds 0 Fullscreen 1 Font 28/SmallcapsGlow Map View 50x43 Zoom Use 0% Tactical HUD 1 Map Filters NONE Filters NONE Steam X RUN: a3b24610-052d-43c4-b180-4110492c84d2